bitfinex/quotes_BTCUSD_20240717
["timestamp","ask_amount","ask_price","bid_price","bid_amount"]
[1721199038418,0.001,65730.0,65727.0,0.00733678]
[1721199038627,0.001,65730.0,65727.0,0.00933678]
[1721199039022,0.001,65730.0,65729.0,0.235339]
[1721199039345,0.001,65730.0,65729.0,0.09053195]
[1721199039702,0.15489897,65734.0,65729.0,0.09053195]
[1721199040076,0.001,65732.0,65729.0,0.09053195]
[1721199040621,0.001,65732.0,65730.0,0.0637]
[1721199040998,0.00277097,65734.0,65730.0,0.0637]
[1721199041205,0.15489997,65734.0,65731.0,0.0302041]
[1721199041443,0.15489997,65734.0,65731.0,0.03753122]
[1721199041846,0.00277097,65735.0,65731.0,0.03753122]
[1721199042051,0.152118,65739.0,65731.0,0.18966422]
[1721199042249,0.00277097,65738.0,65731.0,0.18966422]
[1721199042422,0.152119,65738.0,65732.0,0.02230501]
[1721199042627,0.00277097,65737.0,65732.0,0.02230501]
[1721199043053,0.00277097,65737.0,65733.0,0.00732229]
[1721199043270,0.002,65734.0,65733.0,0.08822229]
[1721199043536,0.002,65734.0,65733.0,0.60785568]
[1721199043722,0.152108,65743.0,65736.0,0.152123]
[1721199043931,0.00277097,65742.0,65736.0,0.15516514]
[1721199044068,0.00277097,65742.0,65737.0,0.08821263]
[1721199045486,0.00277097,65742.0,65738.0,0.0604]
[1721199045747,0.013,65743.0,65739.0,0.02230501]
[1721199045956,0.00277097,65742.0,65739.0,0.02230501]
[1721199046162,0.152105,65744.0,65739.0,0.02230501]
[1721199046378,0.00277097,65743.0,65739.0,0.02230501]
[1721199046619,0.002,65742.0,65740.0,0.03750949]
[1721199047191,0.152102,65746.0,65740.0,0.03750949]
[1721199047415,0.004,65744.0,65740.0,0.03750949]
[1721199047806,0.001,65744.0,65740.0,0.03750949]
[1721199048011,0.001,65744.0,65741.0,0.02230501]
[1721199048255,0.152102,65746.0,65741.0,0.02230501]
[1721199048456,0.00084,65747.0,65743.0,0.152107]
[1721199048635,0.00084,65747.0,65744.0,0.0614]
[1721199048854,0.00084,65747.0,65746.0,0.1521]
[1721199050193,0.00084,65747.0,65746.0,0.0072909]
[1721199050552,0.00084,65747.0,65746.0,0.01033258]
[1721199050911,0.00084,65747.0,65746.0,0.0082909]
[1721199051039,0.00084,65747.0,65746.0,0.0122909]
[1721199052264,0.152938,65747.0,65746.0,0.0122909]
[1721199052457,0.457134,65747.0,65746.0,0.0122909]
[1721199052721,0.457134,65747.0,65746.0,0.005]
[1721199053222,0.457134,65747.0,65746.0,0.001]
[1721199053431,0.152106,65744.0,65740.0,0.081]
[1721199053783,0.152106,65744.0,65741.0,0.00730297]
[1721199054381,0.152108,65743.0,65741.0,0.00730297]
[1721199054603,0.152108,65743.0,65737.0,0.0615]
[1721199054821,0.152108,65743.0,65742.0,0.00730056]
[1721199055014,0.152108,65743.0,65740.0,0.005]
[1721199055222,0.152108,65743.0,65742.0,0.00730056]
[1721199055417,0.152108,65743.0,65741.0,0.00730297]
[1721199055714,0.304204,65746.0,65742.0,0.00730056]
[1721199055715,0.152105,65744.0,65742.0,0.00730056]
[1721199056982,0.152105,65744.0,65742.0,0.01030056]
[1721199057186,0.152103,65745.0,65743.0,0.0801]
[1721199057425,0.152103,65745.0,65744.0,0.00729573]
[1721199058051,0.456308,65745.0,65744.0,0.00729573]
[1721199058268,0.456308,65745.0,65744.0,0.0165353]
[1721199058464,0.152106,65744.0,65742.0,0.001]
[1721199058875,0.304205,65745.0,65742.0,0.001]
[1721199058876,0.152107,65743.0,65742.0,0.001]
[1721199059075,0.152107,65743.0,65738.0,0.0819]
[1721199059794,0.152105,65744.0,65738.0,0.0819]
[1721199060173,0.152105,65744.0,65742.0,0.001]
[1721199060574,0.304204,65746.0,65742.0,0.001]
[1721199060775,0.152103,65745.0,65739.0,0.152116]
[1721199060983,0.152105,65744.0,65740.0,0.00730539]
[1721199061216,0.152105,65744.0,65738.0,0.0839]
[1721199061413,0.152109,65742.0,65741.0,0.00730297]
[1721199061637,0.152109,65742.0,65738.0,0.0839]
[1721199061837,0.152109,65742.0,65741.0,0.00730297]
[1721199062056,0.152115,65740.0,65738.0,0.0819]
[1721199062313,0.456328,65742.0,65741.0,0.00730297]
[1721199062485,0.456328,65742.0,65722.0,0.152154]
[1721199062486,0.152138,65730.0,65725.0,0.1428]
[1721199062860,0.00277097,65729.0,65725.0,0.1428]
[1721199063074,0.76346797,65729.0,65728.0,0.7]
[1721199063248,1.064976,65729.0,65728.0,0.7]
[1721199063460,0.152165,65718.0,65716.0,0.0756]
[1721199064033,0.152165,65718.0,65712.0,0.152179]
[1721199064225,0.304322,65720.0,65713.0,0.12635406]
[1721199064527,0.304322,65720.0,65712.0,0.7]
[1721199064528,0.152165,65718.0,65712.0,0.7]
[1721199064734,0.152165,65718.0,65713.0,0.12635424]
[1721199064926,0.152165,65718.0,65712.0,0.152179]
[1721199065127,0.152165,65718.0,65713.0,0.12635424]
[1721199065332,0.152165,65718.0,65712.0,0.152179]
[1721199065539,0.00277097,65717.0,65713.0,0.1]
[1721199065686,0.152165,65718.0,65713.0,0.1]
[1721199065887,0.760882,65713.0,65712.0,0.004]
[1721199066529,0.152186,65710.0,65704.0,0.04920239]
[1721199066728,0.152186,65710.0,65705.0,0.03432034]
[1721199067331,0.00277097,65709.0,65705.0,0.03432034]
[1721199067646,0.152186,65710.0,65705.0,0.03432034]
[1721199068383,0.153186,65710.0,65705.0,0.03732034]
[1721199068576,0.00277097,65709.0,65706.0,0.01818877]
[1721199068750,0.153186,65710.0,65706.0,0.01818877]
[1721199069290,0.00277097,65709.0,65706.0,0.01818877]
[1721199069622,0.154186,65710.0,65706.0,0.01818877]
[1721199069822,0.154186,65710.0,65707.0,0.02793878]
[1721199070036,0.152186,65709.0,65707.0,0.02793878]
[1721199070242,0.00277097,65708.0,65702.0,0.252202]
[1721199070453,0.00277097,65708.0,65702.0,0.40658374]
[1721199070854,0.00277097,65708.0,65706.0,0.006]
[1721199071471,0.00377097,65708.0,65706.0,0.006]
[1721199071673,0.001,65708.0,65706.0,0.006]
[1721199071916,0.152186,65709.0,65706.0,0.006]
[1721199072136,0.00277097,65708.0,65704.0,0.1]
[1721199072455,0.152193,65706.0,65704.0,0.1]
[1721199072580,0.00277097,65705.0,65704.0,0.1]
[1721199072810,0.00277097,65705.0,65703.0,0.1]
[1721199073024,0.00277097,65707.0,65703.0,0.1]
[1721199073220,0.00277097,65707.0,65706.0,0.007]
[1721199073378,0.15219,65707.0,65706.0,0.01]
[1721199073578,0.15219,65707.0,65703.0,0.1]
[1721199073791,0.00277097,65706.0,65704.0,0.000924]
[1721199073992,0.002,65705.0,65704.0,0.000924]
[1721199074398,0.001,65705.0,65704.0,0.000924]
[1721199075339,0.002,65705.0,65704.0,0.39294627]
[1721199075636,0.002,65705.0,65704.0,0.86079774]
[1721199075866,0.001,65705.0,65704.0,1.16519274]
[1721199076781,0.001,65705.0,65704.0,1.46958774]
[1721199076973,0.002,65705.0,65704.0,1.52758774]
[1721199077314,0.002,65705.0,65704.0,2.53198274]
[1721199077939,0.002,65705.0,65704.0,2.48198274]
[1721199078592,0.002,65705.0,65704.0,2.17758774]
[1721199078981,0.001,65705.0,65704.0,2.16958774]
[1721199079745,0.00277097,65723.0,65710.0,0.1443]
[1721199080076,0.00277097,65728.0,65727.0,0.456432]
[1721199080163,0.00277097,65732.0,65727.0,0.15438174]
[1721199080367,0.00277097,65736.0,65732.0,0.152131]
[1721199080561,0.152119,65738.0,65730.0,0.152135]
[1721199080775,0.00277097,65737.0,65732.0,0.152131]
[1721199080977,0.15488997,65738.0,65728.0,0.45866374]
[1721199081260,0.15488997,65738.0,65730.0,0.152137]
[1721199081261,0.152121,65737.0,65730.0,0.152137]
[1721199082833,0.152121,65737.0,65731.0,0.152134]
[1721199083181,0.163121,65737.0,65732.0,0.001]
[1721199083345,0.153121,65737.0,65729.0,0.17078711]
[1721199083546,0.152131,65733.0,65730.0,0.01943]
[1721199083799,0.00277097,65732.0,65730.0,0.01943]
[1721199084875,0.06,65731.0,65726.0,0.152146]
[1721199085036,0.06,65731.0,65726.0,0.45867374]
[1721199085231,0.002,65737.0,65730.0,0.230936]
[1721199085232,0.155121,65737.0,65730.0,0.230936]
[1721199085438,0.154121,65737.0,65731.0,0.152134]
[1721199085773,0.003,65737.0,65731.0,0.152134]
[1721199086053,0.003,65737.0,65730.0,0.383072]
[1721199086346,0.003,65737.0,65731.0,0.22382394]
[1721199086538,0.002,65737.0,65736.0,0.45637]
[1721199086762,0.003,65737.0,65736.0,0.91499874]
[1721199086991,0.003,65737.0,65736.0,1.21924574]
[1721199087223,0.002,65737.0,65736.0,1.21924574]
[1721199087702,0.00084,65744.0,65743.0,0.152107]
[1721199088415,0.00084,65744.0,65743.0,0.760535]
[1721199088558,0.00084,65744.0,65743.0,0.69030274]
[1721199088786,0.00084,65744.0,65743.0,1.06051674]
[1721199088988,0.00084,65744.0,65743.0,1.06351674]
[1721199090003,0.00084,65744.0,65743.0,1.21351674]
[1721199090347,0.00084,65744.0,65743.0,1.51773074]
[1721199090758,0.00084,65744.0,65743.0,1.51473074]
[1721199091237,0.00084,65744.0,65743.0,2.21473074]
[1721199091432,0.00084,65744.0,65743.0,2.34100606]
[1721199091791,0.00084,65744.0,65743.0,2.64822006]
[1721199092165,0.00084,65744.0,65743.0,2.64522006]
[1721199092552,0.00084,65744.0,65743.0,2.51894474]
[1721199092749,0.00084,65744.0,65743.0,2.64520849]
[1721199093580,0.00184,65744.0,65743.0,2.65920849]
[1721199093816,0.00184,65744.0,65743.0,2.65921054]
[1721199094188,0.00284,65744.0,65743.0,2.67321054]
[1721199095215,0.00284,65744.0,65743.0,2.54694474]
[1721199096050,0.00284,65744.0,65743.0,2.85115874]
[1721199096761,0.00284,65744.0,65743.0,2.87415874]
[1721199097323,0.00284,65744.0,65743.0,2.54694474]
[1721199098361,0.00184,65744.0,65743.0,2.53294474]
[1721199098692,0.00084,65744.0,65743.0,2.54694474]
[1721199098885,0.00184,65744.0,65743.0,2.54694474]
[1721199099245,0.00084,65747.0,65746.0,1.418904]
[1721199099448,0.00084,65747.0,65746.0,1.67328574]
[1721199099663,0.00084,65747.0,65746.0,1.6831973]
[1721199100075,0.00084,65747.0,65746.0,2.3831973]
[1721199100826,0.00184,65747.0,65746.0,2.3971973]
[1721199101530,0.00184,65747.0,65746.0,2.4111973]
[1721199102083,0.00184,65747.0,65746.0,1.7111973]
[1721199102748,0.00184,65747.0,65746.0,1.3924546]
[1721199102905,0.00184,65747.0,65746.0,1.3569963]
[1721199103599,0.00084,65747.0,65746.0,1.3429963]
[1721199104003,0.00184,65747.0,65746.0,1.3569963]
[1721199105223,0.00184,65747.0,65746.0,2.0429963]
[1721199105422,0.00184,65747.0,65746.0,2.0569963]
[1721199107600,0.00184,65747.0,65746.0,2.53746598]
[1721199108238,0.00184,65747.0,65746.0,2.59876598]
[1721199108373,0.00184,65747.0,65746.0,2.68076598]
[1721199109538,0.00184,65747.0,65746.0,2.98496698]
[1721199109740,0.00184,65747.0,65746.0,2.98495871]
[1721199110088,0.064,65763.0,65762.0,0.760317]
[1721199110089,0.06168,65763.0,65762.0,0.760317]
[1721199110283,0.06168,65763.0,65762.0,0.91469874]
[1721199110482,0.06168,65763.0,65762.0,1.22868213]
[1721199111570,0.06268,65763.0,65762.0,1.23768213]
[1721199112219,0.001,65763.0,65762.0,1.33768213]
[1721199113137,0.001,65763.0,65762.0,1.34268213]
[1721199113577,0.001,65763.0,65762.0,2.04268213]
[1721199115207,0.001,65763.0,65762.0,2.59876393]
[1721199115475,0.00837,65773.0,65772.0,1.26428]
[1721199115729,0.00837,65773.0,65772.0,1.64491654]
[1721199115965,0.00837,65773.0,65772.0,1.65473846]
[1721199116197,0.00837,65773.0,65772.0,1.65471474]
[1721199116491,0.00837,65773.0,65772.0,0.72032366]
[1721199116689,0.07317,65773.0,65772.0,1.15064527]
[1721199116899,0.07317,65773.0,65772.0,1.02440366]
[1721199117126,0.07317,65773.0,65772.0,0.72032366]
[1721199117570,0.07317,65773.0,65772.0,1.02440366]
[1721199118268,0.07317,65773.0,65772.0,1.1506469]
[1721199119414,0.07317,65773.0,65772.0,1.15064681]
[1721199120472,0.07317,65773.0,65772.0,1.85064681]
[1721199121031,0.07317,65773.0,65772.0,2.15472681]
[1721199121032,0.01037,65773.0,65772.0,2.15472681]
[1721199121821,0.01037,65773.0,65772.0,2.15471619]
[1721199122255,0.01037,65773.0,65772.0,1.45471619]
[1721199122741,0.01037,65773.0,65772.0,1.15063619]
[1721199123102,0.01037,65773.0,65772.0,1.45471619]
[1721199123905,0.01037,65773.0,65772.0,1.15063619]
[1721199124611,0.00837,65773.0,65772.0,1.15063619]
[1721199125022,0.00837,65773.0,65772.0,1.15064234]
[1721199125455,0.00837,65773.0,65772.0,1.15064255]
[1721199125629,0.00837,65773.0,65772.0,1.15964255]
[1721199125934,0.15377,65773.0,65772.0,0.86656255]
[1721199126272,0.15377,65773.0,65772.0,1.15964661]
[1721199126673,0.15377,65773.0,65772.0,0.85856661]
[1721199126889,0.15377,65773.0,65772.0,0.63232366]
[1721199128041,0.15377,65773.0,65772.0,0.02182192]
[1721199128266,0.15377,65773.0,65772.0,0.03182192]
[1721199128470,0.305808,65773.0,65772.0,0.022]
[1721199128647,0.15377,65773.0,65772.0,0.0394049]
[1721199129057,0.15377,65773.0,65772.0,0.20126682]
[1721199130867,0.15377,65773.0,65772.0,0.50534682]
[1721199136373,0.15377,65773.0,65772.0,0.80942682]
[1721199137630,0.15377,65773.0,65772.0,0.20126682]
[1721199137994,0.15377,65773.0,65772.0,0.50534682]
[1721199139121,0.15377,65773.0,65772.0,0.04922682]
[1721199139391,0.91396,65773.0,65772.0,0.03182192]
[1721199139570,1.218036,65773.0,65772.0,0.03182192]
[1721199139777,1.25897522,65773.0,65772.0,0.022]
[1721199140456,1.25897522,65773.0,65772.0,0.01]
[1721199141113,0.152058,65764.0,65763.0,0.000924]
[1721199141261,0.598175,65764.0,65763.0,0.000924]
[1721199141462,0.598175,65764.0,65763.0,0.01077694]
[1721199142260,0.598175,65764.0,65763.0,0.01477694]
[1721199143639,0.902292,65764.0,65763.0,0.02077694]
[1721199144095,0.902292,65764.0,65763.0,0.010924]
[1721199144507,0.902292,65764.0,65763.0,0.004924]
[1721199144873,0.902292,65764.0,65763.0,0.008924]
[1721199145007,0.902292,65764.0,65763.0,0.004924]
[1721199145408,0.902292,65764.0,65763.0,0.006924]
[1721199151337,0.598175,65764.0,65763.0,0.006924]
[1721199152022,0.902292,65764.0,65763.0,0.006924]
[1721199152241,1.206409,65764.0,65763.0,0.006924]
[1721199153377,0.902292,65764.0,65763.0,0.006924]
[1721199153590,0.902292,65764.0,65763.0,0.002924]
[1721199153796,0.902292,65764.0,65763.0,0.000924]
[1721199154259,0.903292,65764.0,65763.0,0.000924]
[1721199154665,0.902292,65764.0,65763.0,0.000924]
[1721199155405,0.903292,65764.0,65763.0,0.000924]
[1721199159239,1.207409,65764.0,65763.0,0.000924]
[1721199161567,1.25048468,65764.0,65763.0,0.000924]
[1721199161762,1.73198342,65764.0,65763.0,0.000924]
[1721199161969,1.82383513,65764.0,65763.0,0.000924]
[1721199162175,1.75577672,65764.0,65763.0,0.000924]
[1721199162581,1.82381003,65764.0,65763.0,0.000924]
[1721199162760,1.73198342,65764.0,65763.0,0.000924]
[1721199162962,1.82380996,65764.0,65763.0,0.000924]
[1721199163169,1.77633622,65764.0,65763.0,0.000924]
[1721199163515,1.69090774,65764.0,65763.0,0.001924]
[1721199163706,1.8256545,65764.0,65763.0,0.001924]
[1721199163864,1.71470109,65764.0,65763.0,0.001924]
[1721199164068,1.87565401,65764.0,65763.0,0.001924]
[1721199164266,1.99833016,65764.0,65763.0,0.002924]
[1721199164471,2.02100631,65764.0,65763.0,0.002924]
[1721199164701,2.32512331,65764.0,65763.0,0.002924]
[1721199164906,2.28219882,65764.0,65763.0,0.002924]
[1721199165108,2.02113238,65764.0,65763.0,0.002924]
[1721199165864,1.97113238,65764.0,65763.0,0.002924]
[1721199166273,1.85775165,65764.0,65763.0,0.002924]
[1721199167684,1.9483839,65764.0,65763.0,0.002924]
[1721199170080,1.9492199,65764.0,65763.0,0.002924]
[1721199170277,1.85859894,65764.0,65763.0,0.002924]
[1721199172045,1.85943894,65764.0,65763.0,0.002924]
[1721199173456,1.92740189,65764.0,65763.0,0.002924]
[1721199174385,2.01550189,65764.0,65763.0,0.002924]
[1721199175491,1.68874825,65764.0,65763.0,0.002924]
[1721199175717,1.60064825,65764.0,65763.0,0.002924]
[1721199175940,1.64342194,65764.0,65763.0,0.002924]
[1721199176508,1.64042194,65764.0,65763.0,0.001924]
[1721199176711,1.64066908,65764.0,65763.0,0.001924]
[1721199176937,1.56256908,65764.0,65763.0,0.002924]
[1721199177199,1.56256908,65764.0,65763.0,0.001924]
[1721199177200,0.50415999,65764.0,65763.0,0.001924]
[1721199177446,0.50115999,65764.0,65763.0,0.001924]
[1721199177660,0.50115999,65764.0,65763.0,0.002924]
[1721199177661,0.80827699,65764.0,65763.0,0.002924]
[1721199177900,0.80827699,65764.0,65763.0,0.001924]
[1721199178141,0.80827699,65764.0,65763.0,0.002924]
[1721199179749,0.764132,65764.0,65763.0,0.002924]
[1721199179961,0.80779873,65764.0,65763.0,0.002924]
[1721199182331,0.50368173,65764.0,65763.0,0.002924]
[1721199182729,0.80779873,65764.0,65763.0,0.0112464]
[1721199184998,0.50368173,65764.0,65763.0,0.0112464]
[1721199185344,0.54905797,65764.0,65763.0,0.0112464]
[1721199185614,0.54604706,65764.0,65763.0,0.0092464]
[1721199185839,0.50062514,65764.0,65763.0,0.0092464]
[1721199186021,0.54604116,65764.0,65763.0,0.0092464]
[1721199186585,0.85315816,65764.0,65763.0,0.001924]
[1721199186981,0.93546275,65764.0,65763.0,0.001924]
[1721199187228,0.93246275,65764.0,65763.0,0.001924]
[1721199187435,0.93546275,65764.0,65763.0,0.002924]
[1721199187777,1.83108433,65764.0,65763.0,0.002924]
[1721199188017,1.76294432,65764.0,65763.0,0.002924]
[1721199188185,1.97651101,65764.0,65763.0,0.002924]
[1721199188387,1.91294432,65764.0,65763.0,0.002924]
[1721199188590,1.86290628,65764.0,65763.0,0.002924]
[1721199188808,1.85990628,65764.0,65763.0,0.000924]
[1721199189012,1.90990628,65764.0,65763.0,0.000924]
[1721199189382,2.3598835,65764.0,65750.0,0.04908767]
[1721199189595,2.3598835,65764.0,65737.0,0.000924]
[1721199189596,0.152119,65738.0,65737.0,0.000924]
[1721199189788,1.16826104,65738.0,65737.0,0.000924]
[1721199190095,1.47249904,65738.0,65737.0,0.000924]
[1721199191415,1.93111878,65738.0,65737.0,0.000924]
[1721199191615,1.93111878,65738.0,65737.0,0.001924]
[1721199191616,2.06511878,65738.0,65737.0,0.001924]
[1721199191817,2.15662805,65738.0,65737.0,0.001924]
[1721199192000,2.0884945,65738.0,65737.0,0.001924]
[1721199192223,2.0774945,65738.0,65737.0,0.000924]
[1721199192674,2.0894945,65738.0,65737.0,0.001924]
[1721199192879,2.15755302,65738.0,65737.0,0.001924]
[1721199193188,2.12004953,65738.0,65737.0,0.001924]
[1721199193581,2.11104953,65738.0,65737.0,0.001924]
[1721199193738,1.064847,65737.0,65736.0,0.021924]
[1721199193927,1.28536829,65737.0,65736.0,0.021924]
[1721199194862,1.24222874,65737.0,65736.0,0.021924]
[1721199195059,1.28533417,65737.0,65736.0,0.021924]
[1721199195269,1.29233417,65737.0,65736.0,0.022924]
[1721199195611,1.30433417,65737.0,65736.0,0.022924]
[1721199195807,1.30433417,65737.0,65736.0,0.001]
[1721199196423,1.30312303,65737.0,65736.0,0.001]
[1721199199057,1.2600176,65737.0,65736.0,0.001]
[1721199202335,1.08263586,65737.0,65736.0,0.001]
[1721199205981,0.019,65737.0,65736.0,0.001]
[1721199206325,0.475363,65737.0,65736.0,0.1408]
[1721199206464,0.475363,65737.0,65736.0,0.15488]
[1721199206664,0.019,65737.0,65736.0,0.155804]
[1721199206868,0.00784,65737.0,65736.0,0.155804]
[1721199207343,0.00984,65737.0,65736.0,0.155804]
[1721199207737,0.00284,65737.0,65736.0,0.154804]
[1721199213448,0.00284,65737.0,65736.0,0.091904]
[1721199213851,0.763445,65737.0,65736.0,0.000924]
[1721199214405,0.851545,65737.0,65736.0,0.000924]
[1721199214632,1.155787,65737.0,65736.0,0.000924]
[1721199216248,1.067687,65737.0,65736.0,0.000924]
[1721199217297,1.128687,65737.0,65736.0,0.000924]
[1721199217620,1.32774314,65737.0,65736.0,0.000924]
[1721199217860,1.73738514,65737.0,65736.0,0.000924]
[1721199218789,1.73538514,65737.0,65736.0,0.000924]
[1721199219001,1.74738514,65737.0,65736.0,0.000924]
[1721199219236,1.75438514,65737.0,65736.0,0.001924]
[1721199220385,1.45014314,65737.0,65736.0,0.001924]
[1721199220933,1.45046827,65737.0,65736.0,0.001924]
[1721199222095,1.47427096,65737.0,65736.0,0.001924]
[1721199224050,1.47444157,65737.0,65736.0,0.001924]
[1721199224488,1.42927143,65737.0,65736.0,0.001924]
[1721199224649,1.47458143,65737.0,65736.0,0.001924]
[1721199227263,1.42927143,65737.0,65736.0,0.001924]
[1721199227466,1.47458993,65737.0,65736.0,0.001924]
[1721199228313,1.39218993,65737.0,65736.0,0.001924]
[1721199228488,1.36838724,65737.0,65736.0,0.001924]
[1721199228889,0.8257635,65737.0,65736.0,0.001924]
[1721199229306,0.8257635,65737.0,65736.0,0.066724]
[1721199229508,0.8257635,65737.0,65736.0,0.001924]
[1721199229971,1.1117635,65737.0,65736.0,0.001924]
[1721199230130,1.21256501,65737.0,65736.0,0.001924]
[1721199230315,1.51680701,65737.0,65736.0,0.001924]
[1721199230523,1.56052617,65737.0,65736.0,0.001924]
[1721199230903,1.51513789,65737.0,65736.0,0.001924]
[1721199231104,1.56052617,65737.0,65736.0,0.001924]
[1721199231513,1.34022617,65737.0,65736.0,0.001924]
[1721199232111,1.29483789,65737.0,65736.0,0.001924]
[1721199233659,1.25118851,65737.0,65736.0,0.001924]
[1721199233864,1.29481081,65737.0,65736.0,0.001924]
[1721199234172,1.08145139,65737.0,65736.0,0.001924]
[1721199234580,1.38569339,65737.0,65736.0,0.001924]
[1721199235199,1.38574965,65737.0,65736.0,0.001924]
[1721199235752,0.84786881,65737.0,65736.0,0.001924]
[1721199235953,0.93879161,65737.0,65736.0,0.001924]
[1721199236728,1.24303361,65737.0,65736.0,0.001924]
[1721199237087,1.24346715,65737.0,65736.0,0.001924]
[1721199238310,1.33156715,65737.0,65736.0,0.001924]
[1721199239147,1.24064743,65737.0,65736.0,0.001924]
[1721199240370,1.19658851,65737.0,65736.0,0.001924]
[1721199240615,0.93649184,65737.0,65736.0,0.001924]
[1721199240767,0.91269033,65737.0,65736.0,0.001924]
[1721199240968,0.98088082,65737.0,65736.0,0.001924]
[1721199241247,0.13217582,65737.0,65736.0,0.064424]
[1721199241344,0.01984,65737.0,65736.0,0.92263547]
[1721199241544,0.01984,65737.0,65736.0,0.6153464]
[1721199242189,0.00784,65737.0,65736.0,0.6153464]
[1721199242617,0.00284,65737.0,65736.0,0.143524]
[1721199242780,0.00284,65737.0,65736.0,0.295647]
[1721199243260,0.00284,65737.0,65736.0,0.302647]
[1721199243458,0.00384,65737.0,65736.0,0.302647]
[1721199243659,0.00184,65737.0,65736.0,0.302647]
[1721199244113,0.00284,65737.0,65736.0,0.608894]
[1721199245150,0.00184,65737.0,65736.0,1.306894]
[1721199245359,0.00184,65737.0,65736.0,0.599894]
[1721199245553,0.00084,65737.0,65736.0,0.599894]
[1721199245703,0.00184,65737.0,65736.0,0.609894]
[1721199246375,0.00184,65737.0,65736.0,0.617894]
[1721199246579,0.00184,65737.0,65736.0,0.610894]
[1721199246940,0.00184,65737.0,65736.0,0.617894]
[1721199247654,0.00084,65737.0,65736.0,0.614894]
[1721199247882,0.00184,65737.0,65736.0,0.62528429]
[1721199248472,0.00084,65737.0,65736.0,0.62328429]
[1721199248670,0.00184,65737.0,65736.0,0.61028429]
[1721199248864,0.00184,65737.0,65736.0,0.61828429]
[1721199249312,0.00084,65737.0,65736.0,0.60828429]
[1721199249610,0.00184,65737.0,65736.0,0.61728429]
[1721199249786,0.00184,65737.0,65736.0,0.61028429]
[1721199249996,0.00184,65737.0,65736.0,0.54778429]
[1721199250255,0.00184,65737.0,65736.0,0.01931429]
[1721199250381,0.00184,65737.0,65736.0,0.002924]
[1721199250612,0.00184,65737.0,65736.0,0.01131429]
[1721199250803,0.00084,65737.0,65736.0,0.00931429]
[1721199251005,0.00084,65737.0,65736.0,0.000924]
[1721199251226,0.00084,65737.0,65736.0,0.0088264]
[1721199251422,0.00084,65737.0,65736.0,0.2271494]
[1721199251655,0.00084,65737.0,65736.0,0.23553969]
[1721199251960,0.00184,65737.0,65736.0,0.24453969]
[1721199252090,0.00284,65737.0,65736.0,0.24653969]
[1721199252288,0.00284,65737.0,65736.0,0.23953969]
[1721199252806,0.00084,65737.0,65736.0,0.24353969]
[1721199253018,0.00084,65737.0,65736.0,1.39500462]
[1721199253164,0.00084,65737.0,65736.0,1.40200462]
[1721199253365,0.00084,65737.0,65736.0,1.52526237]
[1721199253658,0.00084,65737.0,65736.0,2.22526237]
[1721199253902,0.00084,65737.0,65736.0,2.21826237]
[1721199255171,0.00184,65737.0,65736.0,1.51226237]
[1721199255375,0.00184,65737.0,65736.0,1.39596243]
[1721199255570,0.00184,65737.0,65736.0,1.52225751]
[1721199255791,0.00184,65737.0,65736.0,1.51225751]
[1721199256129,0.00084,65737.0,65736.0,1.52425751]
[1721199256988,0.00084,65737.0,65736.0,1.87850451]
[1721199257354,0.00084,65737.0,65736.0,1.82850451]
[1721199257551,0.00184,65737.0,65736.0,1.83050451]
[1721199258132,0.00184,65737.0,65736.0,2.51450451]
[1721199258133,0.00084,65737.0,65736.0,2.51450451]
[1721199258335,0.00184,65737.0,65736.0,2.56650451]
[1721199258709,0.00184,65737.0,65736.0,2.56650342]
[1721199258913,0.00184,65737.0,65736.0,2.58050342]
[1721199259057,0.00084,65737.0,65736.0,2.51450342]
[1721199259272,0.00184,65737.0,65736.0,2.56650342]
[1721199260078,0.00184,65737.0,65736.0,2.58050342]
[1721199260559,0.00084,65737.0,65736.0,2.57850342]
[1721199260979,0.00184,65737.0,65736.0,2.58050342]
[1721199261335,0.00184,65737.0,65736.0,1.92200942]
[1721199261542,0.00084,65737.0,65736.0,1.73361303]
[1721199261743,0.00084,65737.0,65736.0,2.02386003]
[1721199262086,0.00184,65737.0,65736.0,2.07476003]
[1721199262383,0.00184,65737.0,65736.0,2.08876003]
[1721199262530,0.00084,65737.0,65736.0,2.07276003]
[1721199263658,0.00084,65737.0,65736.0,2.08676003]
[1721199264046,0.00184,65737.0,65736.0,2.08876003]
[1721199264250,0.00184,65737.0,65736.0,2.21505555]
[1721199264488,0.00084,65737.0,65736.0,2.21305555]
[1721199264685,0.00084,65737.0,65736.0,2.55330255]
[1721199264897,0.00184,65737.0,65736.0,2.25105555]
[1721199265087,0.00184,65737.0,65736.0,2.26505541]
[1721199265508,0.00184,65737.0,65736.0,2.2650554]
[1721199265828,0.00184,65737.0,65736.0,2.2290554]
[1721199266392,0.00184,65737.0,65736.0,2.19076003]
[1721199266613,0.00184,65737.0,65736.0,2.30305542]
[1721199267138,0.00084,65737.0,65736.0,2.30105542]
[1721199267344,0.00184,65737.0,65736.0,2.30305542]
[1721199267955,0.00084,65737.0,65736.0,2.30105542]
[1721199268162,0.00184,65737.0,65736.0,2.19076003]
[1721199268353,0.00184,65737.0,65736.0,2.28905626]
[1721199268704,0.00184,65737.0,65736.0,2.30305626]
[1721199268884,0.00084,65737.0,65736.0,2.30105626]
[1721199269082,0.00084,65737.0,65736.0,2.28705626]
[1721199269803,0.00084,65737.0,65736.0,2.30105626]
[1721199270646,0.00184,65737.0,65736.0,2.28905626]
[1721199271399,0.00184,65737.0,65736.0,2.16276003]
[1721199271632,0.00184,65737.0,65736.0,2.28905597]
[1721199272120,0.00184,65737.0,65736.0,2.30305597]
[1721199272455,0.00184,65737.0,65736.0,2.35305597]
[1721199272655,0.00184,65737.0,65736.0,2.36705597]
[1721199272862,0.00184,65737.0,65736.0,2.33905597]
[1721199273098,0.00184,65737.0,65736.0,2.21276003]
[1721199273314,0.00184,65737.0,65736.0,2.35305587]
[1721199273761,0.00084,65737.0,65736.0,2.36505587]
[1721199274981,0.00184,65737.0,65736.0,2.36705587]